bitfinex/quotes_BTCUSD_20240905
["timestamp","ask_amount","ask_price","bid_price","bid_amount"]
[1725548035121,0.01619771,56708.0,56707.0,0.00163]
[1725548035390,1.012007,56708.0,56707.0,0.00163]
[1725548035661,2.78813026,56708.0,56707.0,0.00163]
[1725548035911,7.92387056,56708.0,56707.0,0.00163]
[1725548036154,5.45645767,56708.0,56707.0,0.00163]
[1725548036361,5.40554186,56708.0,56707.0,0.00163]
[1725548036611,2.56876549,56708.0,56707.0,0.00263]
[1725548036928,0.03839749,56708.0,56707.0,0.00263]
[1725548036930,0.0161982,56708.0,56707.0,0.00163]
[1725548037142,0.863534,56708.0,56707.0,0.00163]
[1725548037340,1.258907,56708.0,56707.0,0.00263]
[1725548037724,0.190341,56708.0,56707.0,0.00263]
[1725548037933,1.492007,56708.0,56707.0,0.00263]
[1725548038111,2.6801752,56708.0,56707.0,0.00263]
[1725548038869,2.68230635,56708.0,56707.0,0.00263]
[1725548039078,3.15893982,56708.0,56707.0,0.00263]
[1725548039282,3.19500148,56708.0,56707.0,0.00163]
[1725548039498,3.18780342,56708.0,56707.0,0.00163]
[1725548039698,3.20400439,56708.0,56707.0,0.00163]
[1725548039915,3.19300439,56708.0,56707.0,0.00163]
[1725548040136,3.75141829,56708.0,56707.0,0.00163]
[1725548040387,3.75141829,56708.0,56687.0,0.001632]
[1725548040388,0.88202,56688.0,56687.0,0.001632]
[1725548040591,2.26006937,56688.0,56687.0,0.001632]
[1725548040996,1.920611,56688.0,56687.0,0.001632]
[1725548041487,2.98842837,56688.0,56687.0,0.001632]
[1725548041704,3.00042837,56688.0,56687.0,0.001632]
[1725548041934,3.11662665,56688.0,56687.0,0.001632]
[1725548042143,3.10242837,56688.0,56687.0,0.001632]
[1725548042341,3.47523637,56688.0,56687.0,0.001632]
[1725548042543,3.15058903,56688.0,56687.0,0.001632]
[1725548042959,3.17458903,56688.0,56687.0,0.001632]
[1725548043241,0.532,56681.0,56664.0,0.52650515]
[1725548043473,0.532,56681.0,56680.0,0.00281572]
[1725548043474,2.69958737,56681.0,56680.0,0.00281572]
[1725548043715,3.1686353,56681.0,56680.0,0.00281572]
[1725548043945,3.1686353,56681.0,56621.0,0.1099]
[1725548043946,0.51,56654.0,56621.0,0.1099]
[1725548044172,1.509345,56635.0,56607.0,0.070786]
[1725548044433,2.66367937,56635.0,56614.0,0.1418]
[1725548044601,0.176569,56635.0,56630.0,0.13272]
[1725548044810,0.1265,56646.0,56630.0,0.13272]
[1725548044811,0.01795062,56652.0,56630.0,0.13272]
[1725548045017,0.353077,56645.0,56630.0,0.47217837]
[1725548045252,0.02767913,56654.0,56638.0,0.33945837]
[1725548045464,0.176514,56653.0,56642.0,0.33945837]
[1725548045702,0.1358,56661.0,56646.0,0.176532]
[1725548045918,0.183063,56660.0,56648.0,0.176528]
[1725548046137,0.5,56666.0,56648.0,0.176528]
[1725548046138,0.17648,56664.0,56650.0,0.33945837]
[1725548046349,0.176486,56662.0,56651.0,0.00353]
[1725548046564,0.2419,56669.0,56647.0,0.1114]
[1725548046786,0.013,56653.0,56648.0,0.353055]
[1725548047042,0.013,56653.0,56647.0,0.1114]
[1725548047263,0.013,56653.0,56649.0,0.353048]
[1725548047479,0.013,56653.0,56650.0,0.18005203]
[1725548047683,0.013,56653.0,56652.0,0.529548]
[1725548048107,0.176457,56671.0,56650.0,0.33945837]
[1725548048316,0.35291,56672.0,56656.0,0.33945837]
[1725548048531,0.176449,56674.0,56660.0,0.33945837]
[1725548048735,0.176451,56673.0,56661.0,0.176486]
[1725548048943,0.2432,56681.0,56661.0,0.1351]
[1725548049195,0.02,56687.0,56661.0,0.1351]
[1725548049196,0.174473,56680.0,56666.0,0.352945]
[1725548049431,0.174473,56680.0,56661.0,0.13862949]
[1725548049432,0.352809,56688.0,56672.0,0.33945837]
[1725548049690,0.17642,56683.0,56673.0,0.14032865]
[1725548049887,0.141,56689.0,56673.0,0.14032865]
[1725548049888,0.176414,56685.0,56674.0,0.176446]
[1725548050098,0.60045837,56695.0,56673.0,0.14032865]
[1725548050310,0.6356,56701.0,56685.0,0.33945837]
[1725548050530,0.5,56707.0,56697.0,0.33945837]
[1725548050762,0.491605,56706.0,56690.0,0.1144]
[1725548050984,0.1083,56706.0,56691.0,0.0035278]
[1725548051194,0.176326,56713.0,56692.0,0.1425]
[1725548051419,0.352639,56716.0,56702.0,0.176359]
[1725548051628,0.352639,56716.0,56692.0,0.1425]
[1725548051629,0.1798541,56713.0,56692.0,0.1320271]
[1725548051837,1.291489,56712.0,56694.0,0.176384]
[1725548052061,1.291489,56712.0,56692.0,0.1320271]
[1725548052062,9.0,56714.0,56710.0,0.176335]
[1725548052301,9.0,56714.0,56695.0,0.0035273]
[1725548052302,0.03245233,56713.0,56711.0,0.33945837]
[1725548052502,0.011,56713.0,56711.0,0.33945837]
[1725548052715,0.011,56713.0,56712.0,0.352659]
[1725548052919,0.011,56713.0,56712.0,0.881647]
[1725548053132,9.0,56714.0,56712.0,0.881647]
[1725548053133,9.0,56714.0,56713.0,0.528978]
[1725548053338,9.0,56714.0,56713.0,0.176326]
[1725548053547,9.006,56714.0,56713.0,0.176326]
[1725548053745,9.006,56714.0,56710.0,0.34045837]
[1725548053961,8.77767947,56714.0,56712.0,0.352658]
[1725548054169,8.77767947,56714.0,56713.0,0.176326]
[1725548054387,8.77767947,56714.0,56713.0,0.528978]
[1725548054642,8.77767947,56714.0,56711.0,0.30773]
[1725548054860,8.77167947,56714.0,56712.0,0.176327]
[1725548055078,8.77167947,56714.0,56711.0,0.1314]
[1725548055079,8.77167947,56714.0,56711.0,0.307731]
[1725548055289,8.77167947,56714.0,56713.0,0.01]
[1725548055719,8.77167947,56714.0,56713.0,0.88163]
[1725548055972,8.77167947,56714.0,56713.0,1.234282]
[1725548056194,8.77167947,56714.0,56713.0,1.368782]
[1725548056405,8.77167947,56714.0,56713.0,0.640478]
[1725548056828,8.77249447,56714.0,56713.0,0.99713]
[1725548057048,8.77249447,56714.0,56713.0,1.02013]
[1725548057550,8.77249447,56714.0,56713.0,1.03013]
[1725548057753,8.77249447,56714.0,56713.0,1.516582]
[1725548058378,8.64411761,56714.0,56713.0,1.865234]
[1725548058600,8.64411761,56714.0,56713.0,1.532582]
[1725548059027,8.64411761,56714.0,56713.0,1.512582]
[1725548059239,8.64411761,56714.0,56713.0,1.524582]
[1725548059465,8.64411761,56714.0,56713.0,1.544582]
[1725548059692,8.64411761,56714.0,56713.0,1.532582]
[1725548060166,8.64411761,56714.0,56713.0,1.546582]
[1725548060599,8.64411761,56714.0,56713.0,0.788278]
[1725548061025,8.64411761,56714.0,56713.0,1.14093]
[1725548061487,8.64411761,56714.0,56713.0,1.12693]
[1725548061912,8.64411761,56714.0,56713.0,0.2593]
[1725548062150,8.64411761,56714.0,56713.0,0.014]
[1725548062369,8.64411761,56714.0,56706.0,0.315746]
[1725548062588,8.64411761,56714.0,56713.0,0.528978]
[1725548062813,8.64411761,56714.0,56713.0,1.234282]
[1725548063019,8.64411761,56714.0,56713.0,1.392482]
[1725548063875,8.64411761,56714.0,56713.0,1.415482]
[1725548064523,8.64411761,56714.0,56713.0,1.514082]
[1725548064998,8.64411761,56714.0,56713.0,1.881734]
[1725548065467,8.64411761,56714.0,56713.0,1.876734]
[1725548065673,8.64411761,56714.0,56713.0,1.890734]
[1725548065878,8.64411761,56714.0,56713.0,1.892734]
[1725548066326,8.64411761,56714.0,56713.0,1.538082]
[1725548066527,8.64411761,56714.0,56713.0,1.528082]
[1725548067175,8.64411761,56714.0,56713.0,0.799778]
[1725548067398,8.64411761,56714.0,56713.0,0.014]
[1725548067627,8.64411761,56714.0,56713.0,0.542978]
[1725548067882,8.64411761,56714.0,56713.0,0.014]
[1725548068097,10.47092261,56714.0,56713.0,0.014]
[1725548068313,8.64411761,56714.0,56713.0,0.014]
[1725548069005,8.64411761,56714.0,56703.0,0.352712]
[1725548069238,8.64411761,56714.0,56707.0,0.176344]
[1725548069472,8.64411761,56714.0,56692.0,0.75667271]
[1725548069473,0.0035271,56713.0,56692.0,0.75667271]
[1725548069710,0.176348,56706.0,56696.0,0.352754]
[1725548069970,8.64411761,56714.0,56697.0,0.40389571]
[1725548070203,8.64411761,56714.0,56702.0,0.40389571]
[1725548070437,8.64411761,56714.0,56705.0,0.352699]
[1725548070667,8.64411761,56714.0,56706.0,0.352691]
[1725548070892,8.64411761,56714.0,56697.0,0.40389571]
[1725548071128,0.176342,56708.0,56703.0,0.007]
[1725548071367,0.352697,56706.0,56703.0,0.007]
[1725548071602,0.2516,56704.0,56687.0,0.00163]
[1725548071834,0.176374,56698.0,56691.0,0.176394]
[1725548072068,0.176389,56693.0,56687.0,0.00163]
[1725548072305,0.0035271,56692.0,56687.0,0.00163]
[1725548072546,0.665112,56688.0,56687.0,0.00163]
[1725548072781,0.1359,56688.0,56687.0,0.00163]
[1725548073019,0.312304,56688.0,56687.0,0.00163]
[1725548073243,0.1359,56688.0,56687.0,0.00163]
[1725548073461,0.312304,56688.0,56687.0,0.00163]
[1725548073694,0.17638,56696.0,56688.0,0.176402]
[1725548073935,0.176383,56695.0,56688.0,0.176402]
[1725548074158,0.1359,56697.0,56687.0,0.00163]
[1725548074395,0.2799071,56696.0,56687.0,0.00163]
[1725548074634,0.1359,56697.0,56687.0,0.00163]
[1725548074864,0.176377,56697.0,56687.0,0.14593]
[1725548075099,0.1798991,56699.0,56691.0,0.176394]
[1725548075337,0.176376,56697.0,56690.0,0.176397]
[1725548075567,0.1798981,56699.0,56692.0,0.176391]
[1725548075797,0.0035271,56699.0,56688.0,0.352805]
[1725548076013,0.176367,56700.0,56690.0,0.00352764]
[1725548076244,0.176367,56700.0,56687.0,0.14593]
[1725548076245,0.0035271,56699.0,56687.0,0.00163]
[1725548076492,0.176398,56690.0,56687.0,0.00163]
[1725548076722,0.0035271,56691.0,56687.0,0.00163]
[1725548076952,0.176391,56693.0,56687.0,0.00163]
[1725548077181,0.1799191,56692.0,56687.0,0.00163]
[1725548077408,0.352759,56696.0,56691.0,0.007]
[1725548077646,0.0035271,56695.0,56691.0,0.007]
[1725548077882,0.1409,56708.0,56694.0,0.40389571]
[1725548078109,0.0035271,56707.0,56695.0,0.00352726]
[1725548078358,0.1409,56708.0,56699.0,0.352739]
[1725548078359,0.0035271,56708.0,56699.0,0.352739]
[1725548078595,0.0035271,56711.0,56698.0,0.352742]
[1725548078846,0.0035271,56711.0,56685.0,0.035]
[1725548078847,0.3839301,56711.0,56692.0,0.35278]
[1725548079092,0.0035271,56710.0,56694.0,0.40389571]
[1725548079338,0.003,56708.0,56703.0,0.176356]
[1725548079578,0.003,56708.0,56698.0,0.352744]
[1725548079810,0.003,56708.0,56702.0,0.352715]
[1725548080043,0.003,56708.0,56707.0,0.176345]
[1725548080308,0.003,56708.0,56707.0,0.881725]
[1725548080765,0.003,56708.0,56707.0,0.904725]
[1725548081003,8.64411761,56714.0,56707.0,1.257415]
[1725548081218,8.64411761,56714.0,56713.0,0.528978]
[1725548081493,8.64411761,56714.0,56713.0,0.527978]
[1725548081710,8.64411761,56714.0,56713.0,1.02343]
[1725548081928,8.64411761,56714.0,56713.0,1.04643]
[1725548082387,8.64411761,56714.0,56713.0,1.399082]
[1725548082613,8.64411761,56714.0,56713.0,1.04643]
[1725548082880,8.64411761,56714.0,56713.0,0.176326]
[1725548083094,8.64411761,56714.0,56713.0,0.88163]
[1725548083336,8.64411761,56714.0,56713.0,0.176326]
[1725548083576,8.64411761,56714.0,56713.0,0.88163]
[1725548083794,8.64411761,56714.0,56713.0,0.90463]
[1725548084298,8.64411761,56714.0,56713.0,0.528978]
[1725548084526,8.64411761,56714.0,56713.0,1.633934]
[1725548084773,8.64411761,56714.0,56713.0,1.281282]
[1725548085003,8.64411761,56714.0,56713.0,1.267282]
[1725548085231,8.06276521,56714.0,56713.0,1.281282]
[1725548085469,6.73221263,56714.0,56713.0,1.911234]
[1725548085721,6.73221263,56714.0,56713.0,1.913234]
[1725548086916,6.73194542,56714.0,56713.0,1.913234]
[1725548087144,6.73194542,56714.0,56713.0,1.911234]
[1725548087391,6.73194542,56714.0,56713.0,1.897234]
[1725548087638,6.73194542,56714.0,56713.0,1.899234]
[1725548087966,6.73194542,56714.0,56713.0,1.913234]
[1725548088115,6.73194542,56714.0,56713.0,2.013234]
[1725548088814,6.73194542,56714.0,56713.0,1.999234]
[1725548089308,6.73194542,56714.0,56713.0,2.013234]
[1725548090685,6.73194542,56714.0,56713.0,2.011234]
[1725548091147,6.73194542,56714.0,56713.0,1.999234]
[1725548091604,6.73194542,56714.0,56713.0,2.013234]
[1725548092082,6.73194542,56714.0,56713.0,2.35035669]
[1725548093304,6.73194542,56714.0,56713.0,2.35235669]
[1725548093533,6.73194542,56714.0,56713.0,2.35035669]
[1725548093777,6.73194542,56714.0,56713.0,0.542978]
[1725548094026,6.73194542,56714.0,56713.0,0.190326]
[1725548094294,6.73194542,56714.0,56713.0,0.014]
[1725548094522,6.73194542,56714.0,56705.0,0.352698]
[1725548094743,6.73194542,56714.0,56713.0,0.528978]
[1725548095005,6.73194542,56714.0,56713.0,0.542978]
[1725548095228,6.73194542,56714.0,56713.0,0.014]
[1725548095479,6.73194542,56714.0,56713.0,0.176326]
[1725548095721,6.73194542,56714.0,56713.0,0.528978]
[1725548096196,6.73194542,56714.0,56713.0,0.88163]
[1725548096935,6.73194542,56714.0,56713.0,0.528978]
[1725548097615,0.176342,56708.0,56702.0,0.176359]
[1725548097868,6.87034542,56714.0,56699.0,0.33912269]
[1725548098087,6.87034542,56714.0,56712.0,0.176326]
[1725548098330,6.87034542,56714.0,56707.0,0.352687]
[1725548098555,7.39931442,56714.0,56713.0,0.012]
[1725548098770,9.28788942,56714.0,56713.0,0.012]
[1725548098980,0.1392,56696.0,56695.0,0.529146]
[1725548099201,0.1392,56696.0,56695.0,0.176382]
[1725548099628,0.1077,56697.0,56696.0,0.176379]
[1725548099853,0.1392,56701.0,56695.0,0.35276]
[1725548100070,0.1392,56701.0,56698.0,0.176372]
[1725548100287,0.1392,56706.0,56696.0,0.00352727]
[1725548100499,0.1341,56713.0,56708.0,0.352681]
[1725548100746,0.1341,56713.0,56700.0,0.33912269]
[1725548100747,0.01625689,56712.0,56700.0,0.33912269]
[1725548100959,0.1341,56713.0,56701.0,0.023]
[1725548101177,0.1341,56713.0,56696.0,0.33912269]
[1725548101178,0.176336,56710.0,56697.0,0.023]
[1725548101389,0.352661,56712.0,56697.0,0.023]
[1725548101605,0.1341,56713.0,56702.0,0.352718]
[1725548101834,0.1341,56713.0,56706.0,0.352692]
[1725548102042,6.73194542,56714.0,56705.0,0.352702]
[1725548102257,6.73194542,56714.0,56713.0,0.528978]
[1725548102482,6.73194542,56714.0,56713.0,1.57340469]
[1725548102703,6.73194542,56714.0,56713.0,1.70410469]
[1725548102914,6.73194542,56714.0,56713.0,1.35045269]
[1725548103138,6.73194542,56714.0,56709.0,0.352674]
[1725548103415,6.73194542,56714.0,56712.0,0.176327]
[1725548103626,6.73194542,56714.0,56713.0,0.176326]
[1725548104055,6.73194542,56714.0,56713.0,0.88163]
[1725548104266,6.73194542,56714.0,56713.0,1.59640469]
[1725548104480,6.73194542,56714.0,56713.0,0.90463]
[1725548104687,6.73194542,56714.0,56713.0,0.551978]
[1725548104911,6.73194542,56714.0,56713.0,0.528978]
[1725548105316,6.73194542,56714.0,56713.0,0.88163]
[1725548105523,6.73194542,56714.0,56712.0,0.00163]
[1725548105738,0.781578,56713.0,56712.0,0.00163]
[1725548106011,6.73194542,56714.0,56713.0,0.176326]
[1725548106240,6.73194542,56714.0,56713.0,0.528978]
[1725548106476,6.73194542,56714.0,56713.0,1.57340469]
[1725548106712,6.73167821,56714.0,56713.0,1.93605669]
[1725548106966,6.73167821,56714.0,56713.0,2.07075669]
[1725548107267,6.73167821,56714.0,56713.0,2.24305669]
[1725548107445,6.73167821,56714.0,56713.0,2.34305669]
[1725548108189,6.73167821,56714.0,56713.0,2.69570869]
[1725548108427,3.49091011,56714.0,56713.0,3.22387165]
[1725548108672,2.00288021,56714.0,56713.0,2.97987165]
[1725548108893,1.88180098,56714.0,56713.0,3.33299434]
[1725548109116,1.65563293,56714.0,56713.0,3.37161871]
[1725548109341,1.65563293,56714.0,56713.0,3.31899434]
[1725548109562,1.65563293,56714.0,56713.0,2.99387165]
[1725548109791,1.47930793,56714.0,56713.0,2.99387165]
[1725548110013,1.47930793,56714.0,56713.0,3.04410692]
[1725548110236,0.89824938,56714.0,56713.0,3.44746488]
[1725548110461,0.000816,56740.0,56739.0,0.03]
[1725548110682,0.000816,56740.0,56739.0,1.13960492]
[1725548110914,0.000816,56740.0,56739.0,1.66907596]
[1725548111127,0.000816,56740.0,56739.0,2.12156696]
[1725548111340,0.03335631,56740.0,56739.0,2.12156696]
[1725548111550,0.000816,56740.0,56739.0,2.12156696]
[1725548111762,0.000816,56740.0,56739.0,1.76907596]
[1725548112213,0.01708411,56740.0,56739.0,2.12156696]
[1725548112450,0.000816,56740.0,56739.0,2.12156696]
[1725548112679,0.000816,56740.0,56739.0,1.79207596]
[1725548112895,0.0333484,56740.0,56739.0,1.395718]
[1725548113357,0.704828,56752.0,56740.0,0.17624]
[1725548113787,0.00081,56764.0,56734.0,0.01]
[1725548113788,0.40335796,56763.0,56741.0,0.00352159]
[1725548114002,0.00081,56764.0,56741.0,0.00352159]
[1725548114003,0.00081,56764.0,56747.0,0.01]
[1725548114226,0.00081,56764.0,56761.0,0.176174]
[1725548114437,0.00081,56764.0,56762.0,0.00351913]
[1725548114655,0.00081,56764.0,56762.0,0.176172]
[1725548114887,0.00081,56764.0,56763.0,0.00351824]
[1725548115152,0.00081,56764.0,56761.0,0.176174]
[1725548115410,0.00081,56764.0,56763.0,0.53203132]
[1725548115642,0.00081,56764.0,56763.0,0.90737332]
[1725548115893,0.00081,56764.0,56763.0,1.25971532]
[1725548116643,0.00081,56764.0,56763.0,1.26971532]
[1725548116897,0.00081,56764.0,56763.0,1.27371532]
[1725548117410,0.00081,56764.0,56763.0,0.907855]
[1725548117645,0.00081,56764.0,56763.0,1.272197]
[1725548117918,0.00081,56764.0,56763.0,2.15924996]
[1725548118183,1e-06,56768.0,56767.0,1.66846696]
[1725548118444,1e-06,56768.0,56767.0,2.28428396]
[1725548118751,1e-06,56768.0,56767.0,2.81211192]
[1725548119261,1e-06,56768.0,56767.0,2.55849492]
[1725548120172,1e-06,56768.0,56767.0,2.57249492]
[1725548121505,1e-06,56768.0,56767.0,1.377109]
[1725548121738,1e-06,56768.0,56767.0,1.379109]
[1725548121992,1e-06,56768.0,56767.0,2.13478396]
[1725548122201,1e-06,56768.0,56767.0,1.78246696]
[1725548122412,1e-06,56768.0,56767.0,1.75046696]
[1725548122660,1e-06,56768.0,56767.0,0.894792]
[1725548122864,1e-06,56768.0,56767.0,0.190158]
[1725548123077,0.108201,56768.0,56767.0,0.190158]
[1725548123291,1e-06,56768.0,56767.0,0.894792]
[1725548123695,1e-06,56768.0,56767.0,1.257109]
[1725548124155,1e-06,56768.0,56767.0,2.01278396]
[1725548124377,1e-06,56768.0,56767.0,1.257109]
[1725548124608,1e-06,56768.0,56767.0,0.542475]
[1725548124819,1e-06,56768.0,56767.0,0.894792]
[1725548125032,1e-06,56768.0,56757.0,0.01]
[1725548125033,0.263501,56768.0,56757.0,0.01]
[1725548125248,0.263501,56768.0,56767.0,0.176158]
[1725548125457,0.263501,56768.0,56767.0,0.014]
[1725548125672,0.263501,56768.0,56767.0,0.366317]
[1725548125882,1e-06,56768.0,56767.0,0.904792]
[1725548126103,1e-06,56768.0,56767.0,1.595426]
[1725548126321,1e-06,56768.0,56767.0,1.243109]
[1725548126786,1e-06,56768.0,56767.0,0.176158]
[1725548126991,1e-06,56768.0,56767.0,0.528475]
[1725548127435,1e-06,56768.0,56767.0,0.880792]
[1725548127886,1e-06,56768.0,56767.0,0.528475]
[1725548128092,0.135901,56768.0,56757.0,0.13]
[1725548128298,0.135901,56768.0,56761.0,0.352349]
[1725548128506,0.135901,56768.0,56758.0,0.352367]
[1725548128507,0.352326,56766.0,56758.0,0.352367]
[1725548128713,0.1359,56766.0,56756.0,0.01]
[1725548128922,0.1359,56766.0,56757.0,0.00351866]
[1725548129138,0.1359,56766.0,56765.0,0.528493]
[1725548129341,0.1359,56766.0,56765.0,0.880822]
[1725548129559,0.1359,56766.0,56765.0,1.233151]
[1725548130029,1e-06,56768.0,56767.0,1.233109]
[1725548130241,1e-06,56768.0,56767.0,1.95696709]
[1725548130871,1e-06,56768.0,56767.0,1.95896709]
[1725548131495,1e-06,56768.0,56767.0,1.95696709]
[1725548132331,1e-06,56768.0,56767.0,1.95896709]
[1725548132986,1e-06,56768.0,56767.0,2.60679505]
[1725548133179,1e-06,56768.0,56767.0,2.74729505]
[1725548133393,1e-06,56768.0,56767.0,3.11361205]
[1725548133819,1e-06,56768.0,56767.0,3.1313898]
[1725548134735,1e-06,56768.0,56767.0,2.57178409]
[1725548135185,1e-06,56768.0,56767.0,1.347109]
[1725548135396,1e-06,56768.0,56767.0,0.894792]
[1725548135889,0.173501,56768.0,56763.0,0.001628]
[1725548136123,0.18821655,56768.0,56767.0,0.190158]
[1725548136337,0.18821655,56768.0,56767.0,0.894792]
[1725548136541,0.18821655,56768.0,56767.0,0.528475]
[1725548136759,0.18821655,56768.0,56767.0,0.880792]
[1725548136983,0.18821655,56768.0,56767.0,1.233109]
[1725548136984,0.01471655,56768.0,56767.0,1.233109]
[1725548137205,1e-06,56768.0,56767.0,1.243109]
[1725548137422,1e-06,56768.0,56763.0,0.001628]
[1725548137650,0.1436,56766.0,56763.0,0.001628]
[1725548137868,1e-06,56768.0,56726.0,0.352567]
[1725548137869,0.176237,56742.0,56726.0,0.352567]
[1725548138113,0.33854109,56740.0,56730.0,0.362544]
[1725548138359,0.33854109,56740.0,56721.0,0.1431]
[1725548138360,0.33854109,56736.0,56722.0,0.01]
[1725548138591,0.3273,56739.0,56725.0,0.03]
[1725548138592,0.34197817,56739.0,56725.0,0.03]
[1725548138804,0.182,56735.0,56721.0,0.01]
[1725548139024,0.182,56735.0,56727.0,0.352562]
[1725548139242,0.182,56735.0,56721.0,0.01]
[1725548139498,0.01467817,56734.0,56733.0,0.176264]
[1725548139710,0.01467817,56734.0,56721.0,0.01]
[1725548139935,0.01467817,56734.0,56733.0,0.176264]
[1725548140173,0.01467817,56734.0,56733.0,0.528792]
[1725548140387,0.01467817,56734.0,56733.0,1.233848]
[1725548140600,0.182,56735.0,56734.0,0.881305]
[1725548140805,0.182,56735.0,56734.0,0.904305]
[1725548141483,0.182,56735.0,56734.0,1.256827]
[1725548141695,0.1808,56742.0,56741.0,0.528717]
[1725548141913,0.1808,56742.0,56741.0,0.881195]
[1725548142118,0.19512775,56742.0,56741.0,0.904195]
[1725548142328,0.1808,56742.0,56741.0,0.551717]
[1725548142790,0.19512775,56742.0,56741.0,0.551717]
[1725548142991,0.19512775,56742.0,56741.0,0.176239]
[1725548143225,0.19512775,56742.0,56741.0,0.532717]
[1725548143432,0.19512775,56742.0,56741.0,0.885195]
[1725548143864,0.01432775,56742.0,56741.0,1.270673]
[1725548144320,0.1729,56751.0,56750.0,0.881055]
[1725548144559,0.1729,56751.0,56750.0,0.904055]
[1725548144770,0.18724154,56751.0,56750.0,1.256477]
[1725548144988,0.352301,56770.0,56762.0,0.176173]
[1725548144989,0.75584786,56770.0,56762.0,0.176173]
[1725548145201,0.75584786,56770.0,56750.0,0.023]
[1725548145202,0.01632325,56767.0,56763.0,0.00351841]
[1725548145425,0.01632427,56766.0,56763.0,0.00351841]
[1725548145651,0.74316804,56765.0,56764.0,0.528502]
[1725548145922,0.74316804,56765.0,56750.0,0.033]
[1725548145923,0.3233,56765.0,56753.0,0.01]
[1725548146133,0.01632251,56764.0,56758.0,0.35237]
[1725548146351,0.01632251,56764.0,56755.0,0.352385]
[1725548146352,0.1834,56764.0,56755.0,0.352385]
[1725548146569,0.01632235,56763.0,56761.0,0.176175]
[1725548146780,0.01632235,56763.0,56750.0,0.033]
[1725548146781,0.01434154,56763.0,56762.0,0.176174]
[1725548146992,0.03066428,56763.0,56762.0,0.176174]
[1725548147433,0.01434154,56763.0,56762.0,0.176174]
[1725548147879,0.01434154,56763.0,56762.0,0.528522]
[1725548148088,0.01434154,56763.0,56760.0,0.176178]
[1725548148302,0.01434154,56763.0,56750.0,0.023]
[1725548148303,0.01195129,56763.0,56750.0,0.023]
[1725548148517,0.02827376,56763.0,56762.0,0.528522]
[1725548148738,0.02827376,56763.0,56762.0,0.88987]
[1725548148945,0.01195129,56763.0,56762.0,1.265218]
[1725548149174,1e-06,56768.0,56767.0,0.176158]
[1725548149388,1e-06,56768.0,56767.0,1.25962581]
[1725548149605,0.01195229,56768.0,56767.0,1.25962581]
[1725548149879,1e-06,56768.0,56767.0,0.903792]
[1725548150094,1e-06,56768.0,56767.0,1.256109]
[1725548151211,1e-06,56768.0,56767.0,1.258109]
[1725548151427,0.147031,56775.0,56774.0,0.528409]
[1725548151644,0.147031,56775.0,56774.0,0.880682]
[1725548151859,0.15898229,56775.0,56774.0,1.232955]
[1725548152078,0.00082,56780.0,56775.0,0.910667]
[1725548152297,0.00082,56780.0,56775.0,1.740201]
[1725548152725,0.00082,56780.0,56775.0,1.375934]
[1725548152944,0.00082,56780.0,56775.0,1.355934]
[1725548153159,0.00082,56780.0,56775.0,1.385934]
[1725548153617,0.00082,56780.0,56775.0,1.738201]
[1725548153826,0.00082,56780.0,56775.0,1.740201]
[1725548154259,0.00082,56780.0,56775.0,1.387934]
[1725548154670,0.00082,56780.0,56775.0,1.375934]
[1725548154895,0.00082,56780.0,56775.0,1.385934]
[1725548155345,0.00082,56780.0,56775.0,1.740201]
[1725548155553,0.00081,56793.0,56792.0,0.880405]
[1725548155554,0.1453,56793.0,56792.0,0.880405]
[1725548155959,0.1453,56793.0,56792.0,0.528243]
[1725548156380,0.1453,56793.0,56792.0,0.880405]
[1725548157020,0.1453,56793.0,56791.0,0.176083]
[1725548157223,0.1453,56793.0,56792.0,0.528243]
[1725548157489,0.1453,56793.0,56792.0,1.232567]
[1725548158185,0.1453,56793.0,56792.0,1.241567]
[1725548158620,0.1453,56793.0,56792.0,0.889405]
[1725548158846,0.1453,56793.0,56792.0,0.537243]
[1725548159062,0.1453,56793.0,56792.0,0.009]
[1725548159479,0.321378,56793.0,56792.0,0.009]
[1725548159715,0.1453,56793.0,56792.0,0.537243]
[1725548159978,0.1453,56793.0,56792.0,0.889405]
[1725548160424,0.1453,56793.0,56792.0,1.264567]
[1725548160676,0.1453,56793.0,56792.0,0.889405]
[1725548161605,0.1453,56793.0,56792.0,1.241567]
[1725548161831,0.1453,56793.0,56792.0,1.264567]
[1725548162573,0.00082,56796.0,56795.0,1.2325]
[1725548164220,0.00082,56796.0,56795.0,0.528214]
[1725548164463,0.00082,56796.0,56795.0,0.176071]
[1725548164706,0.00965036,56796.0,56795.0,0.176071]
[1725548164939,0.00965036,56796.0,56795.0,0.886357]
[1725548165270,0.00965036,56796.0,56795.0,0.534214]
[1725548165365,0.00965036,56796.0,56795.0,0.528214]
[1725548165816,0.00965036,56796.0,56795.0,0.008]
[1725548165817,1.05939236,56796.0,56795.0,0.008]
[1725548166055,0.17905036,56796.0,56795.0,0.008]
[1725548166498,0.17905036,56796.0,56795.0,1.22658655]
[1725548166707,0.17905036,56796.0,56795.0,0.184071]
[1725548166916,0.17022,56796.0,56795.0,0.536214]
[1725548167147,0.17905036,56796.0,56795.0,0.536214]
[1725548167631,0.17905036,56796.0,56795.0,0.888357]
[1725548167872,0.00965036,56796.0,56795.0,0.888357]
[1725548168104,0.00965036,56796.0,56795.0,1.59372955]
[1725548168336,0.00965036,56796.0,56795.0,1.94587255]
[1725548168565,0.00082,56796.0,56795.0,1.95887255]
[1725548169051,0.00082,56796.0,56795.0,1.95587255]
[1725548169301,0.00082,56796.0,56795.0,2.15897255]
[1725548169546,0.00082,56796.0,56795.0,2.27297255]
[1725548169783,0.00082,56796.0,56795.0,2.62511555]
[1725548170041,0.00082,56796.0,56795.0,2.76451555]
[1725548170326,0.00082,56796.0,56795.0,2.94002651]
[1725548171287,0.00082,56796.0,56795.0,2.76451555]
[1725548171535,0.00082,56796.0,56795.0,2.39837255]
[1725548172020,0.00082,56796.0,56795.0,2.41037255]
[1725548172243,0.00082,56796.0,56795.0,2.39837255]